fUSD/lending_fUSD_20250520
["ID","MTS","AMOUNT","RATE_DAILY","PERIOD"]
[361704234,1747706734583,530.84,0.00011068,2]
[361704235,1747706761306,206.34755682,0.000125,7]
[361704236,1747706801117,-383.83307852,0.00011417,2]
[361704237,1747706821530,169.6632676,0.000125,7]
[361704238,1747706844101,-147.88692148,0.00011417,2]
[361704239,1747706844126,-250.0,0.00011551,2]
[361704240,1747706844151,-200.0,0.00011551,2]
[361704241,1747706844179,-200.0,0.00011663,2]
[361704242,1747706844201,-654.82859826,0.00011758,2]
[361704243,1747706844227,-1200.0,0.00011759,2]
[361704244,1747706844251,-300.0,0.00011759,2]
[361704245,1747706844274,-9746.0,0.0001176,2]
[361704246,1747706844297,-284.6462082,0.0001176,2]
[361704247,1747706844319,-1000.0,0.0001186,2]
[361704248,1747706844343,-3410.4221,0.000119,2]
[361704249,1747706844363,-1417.1418,0.000119,2]
[361704250,1747706844384,-1287.43,0.000119,2]
[361704251,1747706844409,-207.4,0.00011907,2]
[361704252,1747706844430,-150.0,0.00011913,2]
[361704253,1747706844452,-899.553,0.00011914,2]
[361704254,1747706844473,-415.203,0.00011914,2]
[361704255,1747706844494,-880.0,0.00011914,2]
[361704256,1747706844515,-5944.0,0.00011914,2]
[361704257,1747706844536,-1150.0,0.00011914,2]
[361704258,1747706844559,-1774.58373004,0.00011914,2]
[361704259,1747706847301,526.61972622,0.00027397,120]
[361704260,1747706848126,-9132.36626996,0.00011914,2]
[361704261,1747706848146,-250.0,0.00011971,2]
[361704262,1747706848168,-157.87504095,0.00011973,2]
[361704263,1747706848192,-1307.953,0.00011973,2]
[361704264,1747706848214,-25630.4521744,0.0001199,2]
[361704265,1747706848236,-1050.3137207,0.0001199,2]
[361704266,1747706848259,-1265.1261689,0.0001199,2]
[361704267,1747706848280,-687.29999746,0.0001199,2]
[361704268,1747706848302,-2806.844485,0.0001199,2]
[361704269,1747706848323,-6111.8096122,0.0001199,2]
[361704270,1747706848344,-48192.79871351,0.00011999,2]
[361704275,1747707032000,-270.4138977,0.0001176,2]
[361704276,1747707032012,-40.5821023,0.00011834,2]
[361704277,1747707032209,-959.4178977,0.00011834,2]
[361704278,1747707032221,-200.0,0.00011841,2]
[361704279,1747707032234,-158.65,0.00011921,2]
[361704280,1747707032245,-351.76,0.00011921,2]
[361704281,1747707032256,-505.01012489,0.00011973,2]
[361704282,1747707032268,-150.0,0.00011989,2]
[361704283,1747707032280,-1200.0,0.00011989,2]
[361704284,1747707032291,-42175.98087201,0.0001199,2]
[361704285,1747707032496,-36111.74171529,0.0001199,2]
[361704286,1747707032507,-3208.1630337,0.0001199,2]
[361704287,1747707032519,-605.24852621,0.00011998,2]
[361704288,1747707032529,-22560.4531957,0.00011999,2]
[361704303,1747707038236,-21284.00000001,0.00011999,2]
[361704309,1747707038407,-157246.34470268,0.00011999,2]
[361704311,1747707038417,-200.0,0.00011999,2]
[361704313,1747707038426,-383.42204252,0.00012,2]
[361704315,1747707038436,-110117.00793721,0.00012,2]
[361704317,1747707038448,-41836.69662486,0.00012,2]
[361704360,1747707040141,-1207.87140131,0.00012,2]
[361704362,1747707040154,-924.5589717,0.00012,2]
[361704364,1747707040166,-8660.87066265,0.00012,2]
[361704366,1747707040177,-2164.215192,0.00012,2]
[361704369,1747707040194,-601.62986798,0.00012,2]
[361704374,1747707040247,-824065.56606814,0.00012,2]
[361704376,1747707040258,-4045.0,0.00012,2]
[361704377,1747707040272,-156.622,0.00012,2]
[361704379,1747707040282,-757.478,0.00012,2]
[361704381,1747707040292,-2568413.89563414,0.00012,2]
[361704383,1747707040301,-1761770.61289704,0.00012,2]
[361704385,1747707040317,-9407.19625015,0.00012,2]
[361704390,1747707040408,-124494.75075305,0.00012,2]
[361704635,1747707045312,-274.87101779,0.00012,2]
[361704637,1747707045324,-875.12898221,0.00012,2]
[361704639,1747707045333,-14364.94664388,0.00012,2]
[361704641,1747707045345,-49939.24667017,0.00012,2]
[361704643,1747707045356,-260021.03532337,0.00012,2]
[361704645,1747707045372,-383.20020393,0.00012,2]
[361704647,1747707045383,-253.18870924,0.00012,2]
[361704649,1747707045419,-42.64811986,0.00012,2]
[361704650,1747707046091,-1024.15,0.00012,2]
[361704651,1747707046104,-62031.71454257,0.00012,2]
[361704652,1747707046115,-374.17379999,0.00012,2]
[361704653,1747707046198,-269.24704914,0.00012,2]
[361704654,1747707046210,-1826.56410682,0.00012,2]
[361704655,1747707046223,-7654.980672,0.00012,2]
[361704656,1747707046251,-378.43528873,0.00012,2]
[361704657,1747707046357,-96365.48927162,0.00012,2]
[361704658,1747707046369,-2866.08229076,0.00012,2]
[361704659,1747707046380,-1422.45522183,0.00012,2]
[361704660,1747707046412,-723.73,0.00012,2]
[361704663,1747707046425,-692.17038355,0.00012,2]
[361704864,1747707145638,700.0,0.00010959,2]
[361704865,1747707145900,700.0,0.00010959,2]
[361704866,1747707146161,700.0,0.00010959,2]
[361704867,1747707146436,700.0,0.00010959,2]
[361704868,1747707146689,310.22567633,0.00010959,2]
[361704869,1747707146713,389.77432367,0.00010959,2]
[361704870,1747707146962,700.0,0.00010959,2]
[361704871,1747707147231,700.0,0.00010959,2]
[361704872,1747707147853,700.0,0.00010959,2]
[361704873,1747707147934,700.0,0.00010959,2]
[361704874,1747707148415,700.0,0.00010959,2]
[361704875,1747707336308,-211.24389078,0.00011226,2]
[361704876,1747707340493,222.42345038,0.000273,120]
[361704877,1747707340593,-295.17899184,0.00011226,2]
[361704878,1747707342040,-177.02404935,0.00011226,2]
[361704879,1747707345700,-176.17132452,0.00011226,2]
[361704880,1747707351487,-146.44174351,0.00011226,2]
[361704881,1747707373080,1133.17,0.000112,2]
[361704882,1747707396288,150.0,0.00011226,7]
[361704883,1747707401172,172.00544957,0.00027,120]
[361704884,1747707418638,194.0,0.000112,2]
[361704885,1747707423280,194.0,0.000112,2]
[361704888,1747707527818,250.0,0.0001121,2]
[361704889,1747707652550,516.91,9.259e-05,2]
[361704890,1747707661137,2000.0,0.00027397,120]
[361704891,1747707809897,700.0,0.00010959,2]
[361704892,1747707810150,700.0,0.00010959,2]
[361704893,1747707810465,700.0,0.00010959,2]
[361704894,1747707810737,700.0,0.00010959,2]
[361704895,1747707812490,700.0,0.00010959,2]
[361704896,1747707812546,700.0,0.00010959,2]
[361704897,1747707812613,700.0,0.00010959,2]
[361704898,1747707812662,700.0,0.00010959,2]
[361704899,1747707812700,700.0,0.00010959,2]
[361704900,1747707812889,700.0,0.00010959,2]
[361704901,1747707835979,179.69,0.00011144,2]
[361704902,1747707860015,896.58,0.00011144,2]
[361704903,1747707964093,169.66,0.00011146,2]
[361704904,1747707971572,203.0,0.00010408,2]
[361704906,1747707976901,511.0,0.000273,120]
[361704907,1747708027128,-200.0,0.00011466,2]
[361704908,1747708027152,-250.0,0.00011494,2]
[361704909,1747708027174,-200.0,0.00011494,2]
[361704910,1747708027195,-516.91,0.00011523,2]
[361704911,1747708027217,-757.6089234,0.00011748,2]
[361704912,1747708027239,-256.8932029,0.0001176,2]
[361704913,1747708027260,-1500.0,0.0001184,2]
[361704914,1747708027283,-1357.50026075,0.000119,2]
[361704915,1747708027303,-308.46622562,0.000119,2]
[361704916,1747708027325,-161.33,0.00011936,2]
[361704917,1747708027349,-207.4,0.00011984,2]
[361704918,1747708027370,-1200.0,0.00011988,2]
[361704919,1747708027391,-150.0,0.00011988,2]
[361704920,1747708027413,-833.28,0.00011989,2]
[361704921,1747708027435,-9999.99,0.00011989,2]
[361704922,1747708027456,-696.53,0.00011989,2]
[361704923,1747708027479,-705.71,0.00011989,2]
[361704924,1747708027500,-150.99,0.00011989,2]
[361704925,1747708027522,-1046.362,0.0001199,2]
[361704926,1747708027543,-6366.6682427,0.00011992,2]
[361704927,1747708027564,-1364.6166171,0.00011992,2]
[361704928,1747708027584,-3277.6857023,0.00011992,2]
[361704929,1747708027608,-33164.886753,0.00011992,2]
[361704930,1747708027629,-26421.57465224,0.00011992,2]
[361704931,1747708027649,-1936.7528561,0.00011992,2]
[361704932,1747708027673,-303075.21768007,0.00012,2]
[361704933,1747708029463,1421.7,0.00011131,2]
[361704935,1747708211787,151.54606135,0.000125,7]
[361704936,1747708212302,1000.0,0.00011122,2]
[361704946,1747708232222,-167.56,0.00011465,2]
[361704947,1747708232233,-184.535,0.00011612,2]
[361704948,1747708232329,-15.465,0.00011612,2]
[361704949,1747708232340,-244.0485427,0.0001176,2]
[361704950,1747708232349,-200.0,0.00011785,2]
[361704951,1747708232359,-943.15409387,0.000119,2]
[361704952,1747708232368,-479.81385714,0.000119,2]
[361704953,1747708232377,-152.68942022,0.000119,2]
[361704954,1747708232386,-943.15409388,0.000119,2]
[361704955,1747708232395,-152.68942022,0.00011923,2]
[361704956,1747708232405,-500.0,0.00011973,2]
[361704957,1747708232414,-207.4,0.00011982,2]
[361704958,1747708232423,-1158.0,0.00011991,2]
[361704959,1747708232434,-300.0,0.00011991,2]
[361704960,1747708232444,-6964.04541289,0.00011992,2]
[361704961,1747708232455,-1033.09369601,0.00011992,2]
[361704962,1747708232465,-1714.0878873,0.00011992,2]
[361704963,1747708232474,-94724.79312084,0.00012,2]
[361704964,1747708232486,-26672.7276807,0.00012,2]
[361704980,1747708238782,-811.696,0.00011912,2]
[361704981,1747708238792,-4137.3873194,0.00011992,2]
[361704982,1747708238806,-191.71102127,0.00012,2]
[361704983,1747708238816,-343680.13389095,0.00012,2]
[361704984,1747708238829,-71089.5582875,0.00012,2]
[361704985,1747708238841,-21925.77815351,0.00012,2]
[361704986,1747708238853,-11931.18395168,0.00012,2]
[361704987,1747708238865,-504.00915281,0.00012,2]
[361704993,1747708240297,-298.704,0.00012,2]
[361704994,1747708240350,-3284689.89548912,0.00012,2]
[361704995,1747708240360,-10480.40819635,0.00012,2]
[361704996,1747708240370,-250.0,0.00012,2]
[361704997,1747708240379,-250.0,0.00012,2]
[361704998,1747708240388,-250.0,0.00012,2]
[361704999,1747708240398,-250.0,0.00012,2]
[361705000,1747708240407,-250.0,0.00012,2]
[361705001,1747708240416,-250.0,0.00012,2]
[361705002,1747708240426,-250.0,0.00012,2]
[361705003,1747708240435,-327.8,0.00012,2]
[361705004,1747708240444,-151.0,0.00012,2]
[361705005,1747708240454,-151.0,0.00012,2]
[361705006,1747708240463,-151.0,0.00012,2]
[361705007,1747708240473,-151.186776,0.00012,2]
[361705008,1747708240483,-151.0,0.00012,2]
[361705009,1747708240492,-264.278981,0.00012,2]
[361705010,1747708240502,-151.0,0.00012,2]
[361705011,1747708240512,-151.0,0.00012,2]
[361705012,1747708240522,-151.0,0.00012,2]
[361705013,1747708240531,-151.0,0.00012,2]
[361705014,1747708240541,-151.94947312,0.00012,2]
[361705015,1747708240556,-151.0,0.00012,2]
[361705016,1747708240565,-151.0,0.00012,2]
[361705017,1747708240574,-151.0,0.00012,2]
[361705018,1747708240584,-229.208228,0.00012,2]
[361705019,1747708240592,-151.0,0.00012,2]
[361705020,1747708240602,-151.0,0.00012,2]
[361705021,1747708240612,-151.0,0.00012,2]
[361705022,1747708240623,-151.0,0.00012,2]
[361705023,1747708240633,-151.0,0.00012,2]
[361705024,1747708240642,-151.0,0.00012,2]
[361705025,1747708240652,-1000.0,0.00012,2]
[361705026,1747708240662,-1000.0,0.00012,2]
[361705027,1747708240671,-1000.0,0.00012,2]
[361705028,1747708240681,-1000.0,0.00012,2]
[361705029,1747708240691,-1000.0,0.00012,2]
[361705030,1747708240701,-1000.0,0.00012,2]
[361705032,1747708240710,-1000.0,0.00012,2]
[361705034,1747708240719,-1000.0,0.00012,2]
[361705035,1747708240729,-1000.0,0.00012,2]
[361705036,1747708240739,-1000.0,0.00012,2]
[361705037,1747708240748,-1000.0,0.00012,2]
[361705038,1747708240758,-1000.0,0.00012,2]
[361705039,1747708240767,-1000.0,0.00012,2]
[361705040,1747708240776,-1000.0,0.00012,2]
[361705041,1747708240785,-1000.0,0.00012,2]
[361705042,1747708240799,-1000.0,0.00012,2]
[361705043,1747708240809,-1000.0,0.00012,2]
[361705044,1747708240819,-1000.0,0.00012,2]
[361705045,1747708240832,-1000.0,0.00012,2]
[361705046,1747708240842,-1000.0,0.00012,2]
[361705047,1747708240853,-1000.0,0.00012,2]
[361705048,1747708240863,-1000.0,0.00012,2]
[361705049,1747708240873,-1000.0,0.00012,2]
[361705050,1747708240882,-1000.0,0.00012,2]
[361705051,1747708240893,-1000.0,0.00012,2]
[361705052,1747708240904,-1000.0,0.00012,2]
[361705053,1747708240914,-1000.0,0.00012,2]
[361705054,1747708240924,-1000.0,0.00012,2]
[361705055,1747708240934,-1000.0,0.00012,2]
[361705056,1747708240944,-1000.0,0.00012,2]
[361705057,1747708240953,-1146.61601746,0.00012,2]
[361705058,1747708240962,-406.665,0.00012,2]
[361705059,1747708240971,-801.0,0.00012,2]
[361705060,1747708240981,-458.06,0.00012,2]
[361705061,1747708240990,-1001719.54037013,0.00012,2]
[361705062,1747708241007,-1283.90821856,0.00012,2]
[361705063,1747708241018,-18312.90469127,0.00012,2]
[361705064,1747708241030,-37353.88542341,0.00012,2]
[361705065,1747708241042,-60151.6776342,0.00012,2]
[361705066,1747708241058,-1741.60117802,0.00012,2]
[361705067,1747708241234,-214.89105634,0.00012,2]
[361705068,1747708241247,-9663.05222764,0.00012,2]
[361705069,1747708241262,-40470.0,0.00012,2]
[361705076,1747708243388,-523.72319935,0.00012,2]
[361705077,1747708243552,-283.2012423,0.00012,2]
[361705080,1747708246464,-3495.82280953,0.00012,2]
[361705081,1747708246477,-645.98545978,0.00012,2]
[361705082,1747708246490,-608.47509742,0.00012,2]
[361705083,1747708246514,-11691.43619083,0.00012,2]
[361705219,1747708474578,700.0,0.00010959,2]
[361705220,1747708474881,700.0,0.00010959,2]
[361705221,1747708475160,700.0,0.00010959,2]
[361705222,1747708475326,1500.0,0.00011142,2]
[361705223,1747708475806,177.17549284,0.00010959,2]
[361705224,1747708475832,522.82450716,0.00010959,2]
[361705225,1747708476081,700.0,0.00010959,2]
[361705226,1747708476749,700.0,0.00010959,2]
[361705227,1747708477020,700.0,0.00010959,2]
[361705228,1747708477339,700.0,0.00010959,2]
[361705229,1747708477612,700.0,0.00010959,2]
[361705230,1747708477888,700.0,0.00010959,2]
[361705231,1747708527229,208.81,0.00011,2]
[361705232,1747708594352,503.03,0.0001116,2]
[361705233,1747708674010,465.21,9.233e-05,2]
[361705234,1747708846515,150.0,0.00011143,7]
[361705235,1747708850518,498.61,0.00011143,2]
[361705236,1747709093572,177.17,0.0001109,2]
[361705237,1747709144580,700.0,0.00010959,2]
[361705238,1747709145206,700.0,0.00010959,2]
[361705239,1747709145793,700.0,0.00010959,2]
[361705240,1747709145825,-203.0,0.00011223,2]
[361705241,1747709146074,24.38477028,0.00010959,2]
[361705242,1747709146100,675.61522972,0.00010959,2]
[361705243,1747709146681,700.0,0.00010959,2]
[361705244,1747709148016,700.0,0.00010959,2]
[361705245,1747709148379,700.0,0.00010959,2]
[361705246,1747709148663,700.0,0.00010959,2]
[361705247,1747709148938,700.0,0.00010959,2]
[361705248,1747709150189,700.0,0.00010959,2]
[361705249,1747709178869,175.92629731,0.000125,7]
[361705250,1747709254702,726.62044403,0.00027397,120]
[361705257,1747709370279,1000.0,0.00011092,2]
[361705265,1747709432372,-200.0,0.00011391,2]
[361705266,1747709432383,-250.0,0.00011391,2]
[361705267,1747709432394,-167.48,0.00011423,2]
[361705268,1747709432406,-465.21,0.00011497,2]
[361705269,1747709432417,-200.0,0.00011523,2]
[361705270,1747709432427,-231.8461156,0.0001176,2]
[361705271,1747709432440,-300.0,0.00011899,2]
[361705272,1747709432451,-2504.38564472,0.000119,2]
[361705273,1747709432464,-697.226639,0.000119,2]
[361705274,1747709432743,-1712.9407238,0.000119,2]
[361705275,1747709432756,-827.87084126,0.000119,2]
[361705283,1747709432797,-6475.07849788,0.000119,2]
[361705290,1747709433160,-205.64415042,0.000119,2]
[361705292,1747709433171,-174.94834289,0.000119,2]
[361705294,1747709433181,-207.4,0.00011934,2]
[361705296,1747709433190,-150.0,0.00011941,2]
[361705298,1747709433200,-24535.97856175,0.00011942,2]
[361705300,1747709433209,-500.0,0.00011973,2]
[361705302,1747709433219,-161.01,0.0001199,2]
[361705303,1747709433233,-991.882,0.0001199,2]
[361705306,1747709433244,-1260.28,0.0001199,2]
[361705307,1747709433254,-6389.56717473,0.0001199,2]
[361705791,1747709438285,-779.54,0.0001199,2]
[361705802,1747709438390,-496.59,0.0001199,2]
[361705808,1747709438444,-1520.94282527,0.0001199,2]
[361705810,1747709438454,-3760.01,0.0001199,2]
[361705812,1747709438464,-1612.6033607,0.00011991,2]
[361705814,1747709438474,-3877.8682994,0.00011991,2]
[361705816,1747709438487,-1240.7098084,0.00011991,2]
[361705819,1747709438496,-1006.6501847,0.00011991,2]
[361705821,1747709438506,-33279.4079094,0.00011991,2]
[361705823,1747709438517,-1194.0554585,0.00011991,2]
[361705824,1747709438526,-460.02505356,0.00011999,2]
[361705827,1747709438537,-302.66670606,0.00011999,2]
[361705829,1747709438550,-17445.14865104,0.00012,2]
[361705831,1747709438562,-1103.78704119,0.00012,2]
[361705833,1747709438573,-1057.44297482,0.00012,2]
[361705835,1747709438587,-5823.568223,0.00012,2]
[361705837,1747709438599,-53108.75036345,0.00012,2]
[361706023,1747709440373,-175768.29613183,0.00012,2]
[361706026,1747709440383,-191.71102125,0.00012,2]
[361706029,1747709440393,-4159183.6013781,0.00012,2]
[361706033,1747709440404,-9303.7276782,0.00012,2]
[361706037,1747709440416,-41303.73110074,0.00012,2]
[361706082,1747709440638,-2239.99555988,0.00012,2]
[361706086,1747709440650,-333.81892786,0.00012,2]
[361706094,1747709440690,-9988.08906141,0.00012,2]
[361706168,1747709441468,150.0,0.000135,5]
[361706455,1747709446536,-11293.46681138,0.00012,2]
[361706456,1747709446589,-470.6780389,0.00012,2]
[361706457,1747709446602,-80499.56647023,0.00012,2]
[361706458,1747709446614,-7565.56847393,0.00012,2]
[361706459,1747709446626,-31871.0,0.00012,2]
[361706460,1747709446747,-9562.4644,0.00012,2]
[361706483,1747709562651,1500.0,0.00011138,2]
[361706484,1747709677909,251.51,0.00011132,2]
[361706485,1747709693781,458.29,9.203e-05,2]
[361706486,1747709724404,176.48649534,0.00011076,2]
[361706487,1747709801954,700.0,0.00010959,2]
[361706488,1747709802256,700.0,0.00010959,2]
[361706489,1747709802512,700.0,0.00010959,2]
[361706490,1747709806050,700.0,0.00010959,2]
[361706491,1747709806327,700.0,0.00010959,2]
[361706492,1747709806585,700.0,0.00010959,2]
[361706493,1747709806851,700.0,0.00010959,2]
[361706494,1747709807140,700.0,0.00010959,2]
[361706495,1747709807418,700.0,0.00010959,2]
[361706496,1747709807675,700.0,0.00010959,2]
[361706497,1747709911277,150.0,0.00011107,7]
[361706498,1747709956801,45548.79,0.00011107,2]
[361706499,1747709964299,166.29,0.00011107,2]
[361706500,1747710104429,-458.29,0.00011467,2]
[361706501,1747710104461,-200.0,0.00011496,2]
[361706502,1747710104491,-757.60892341,0.00011546,2]
[361706503,1747710104519,-200.0,0.00011563,2]
[361706504,1747710104545,-250.0,0.00011563,2]
[361706505,1747710104573,-340.2698424,0.0001176,2]
[361706506,1747710104600,-1200.0,0.00011899,2]
[361706507,1747710104626,-300.0,0.00011899,2]
[361706508,1747710104654,-269.4158,0.000119,2]
[361706509,1747710104680,-944.93192484,0.000119,2]
[361706510,1747710104706,-1000.0,0.000119,2]
[361706511,1747710104734,-336.0287,0.000119,2]
[361706512,1747710104759,-2500.0,0.000119,2]
[361706513,1747710104785,-600.0,0.000119,2]
[361706514,1747710104811,-316.46922391,0.000119,2]
[361706515,1747710104836,-209.40156537,0.000119,2]
[361706516,1747710104862,-174.76559536,0.000119,2]
[361706517,1747710104886,-167.96751445,0.000119,2]
[361706518,1747710104912,-191.22749988,0.000119,2]
[361706519,1747710105151,-944.93192483,0.000119,2]
[361706520,1747710105178,-299.99,0.000119,2]
[361706521,1747710105205,-8609.01,0.000119,2]
[361706522,1747710105234,-5536.71,0.000119,2]
[361706523,1747710105261,-7337.98,0.000119,2]
[361706524,1747710105289,-406.45,0.000119,2]
[361706525,1747710105313,-1085.34,0.000119,2]
[361706526,1747710105338,-156.89265721,0.00011973,2]
[361706527,1747710105365,-508.20384541,0.00011973,2]
[361706528,1747710105390,-160.39965434,0.00011973,2]
[361706529,1747710105417,-150.0,0.00011989,2]
[361706530,1747710105443,-164.57,0.0001199,2]
[361706531,1747710105476,-164.57,0.0001199,2]
[361706532,1747710105502,-283.26660999,0.0001199,2]
[361706533,1747710105530,-1592.311,0.0001199,2]
[361706534,1747710105558,-161.099,0.0001199,2]
[361706535,1747710105584,-164.57,0.0001199,2]
[361706536,1747710105611,-164.57,0.0001199,2]
[361706537,1747710105637,-164.57,0.0001199,2]
[361706538,1747710105664,-164.57,0.0001199,2]
[361706539,1747710105689,-164.57,0.0001199,2]
[361706540,1747710105716,-164.57,0.0001199,2]
[361706541,1747710105742,-164.57,0.0001199,2]
[361706542,1747710105769,-1076.7311457,0.00011991,2]
[361706543,1747710105794,-1712.8901372,0.00011991,2]
[361706544,1747710105820,-24622.6669882,0.00011991,2]
[361706545,1747710105845,-613.5009892,0.00011991,2]
[361706546,1747710105871,-153.17259179,0.00011993,2]
[361706547,1747710105896,-155.90048019,0.00011993,2]
[361706548,1747710105922,-154.30641366,0.00011993,2]
[361706549,1747710105949,-207.60551201,0.00011993,2]
[361706550,1747710105976,-151.97669662,0.00011993,2]
[361706551,1747710106002,-693.96228521,0.00011993,2]
[361706552,1747710106029,-674.65254211,0.00011993,2]
[361706553,1747710106055,-207.4,0.00011993,2]
[361706554,1747710106085,-500.0,0.00011999,2]
[361706555,1747710106116,-500.0,0.00011999,2]
[361706556,1747710106146,-546.80900608,0.00011999,2]
[361706557,1747710106174,-500.0,0.00011999,2]
[361706558,1747710106204,-500.0,0.00011999,2]
[361706559,1747710106234,-500.0,0.00011999,2]
[361706560,1747710106265,-500.0,0.00011999,2]
[361706561,1747710106295,-500.0,0.00011999,2]
[361706562,1747710106323,-600.0,0.00011999,2]
[361706563,1747710106354,-500.0,0.00011999,2]
[361706564,1747710106715,-500.0,0.00011999,2]
[361706565,1747710106747,-500.0,0.00011999,2]
[361706566,1747710106777,-500.0,0.00011999,2]
[361706567,1747710106808,-500.0,0.00011999,2]
[361706568,1747710106836,-450.0,0.00011999,2]
[361706569,1747710106864,-500.0,0.00011999,2]
[361706570,1747710106896,-500.0,0.00011999,2]
[361706571,1747710106924,-500.0,0.00011999,2]
[361706572,1747710106954,-500.0,0.00011999,2]
[361706573,1747710106986,-500.0,0.00011999,2]
[361706574,1747710107014,-500.0,0.00011999,2]
[361706575,1747710107044,-500.0,0.00011999,2]
[361706576,1747710107073,-500.0,0.00011999,2]
[361706577,1747710107102,-500.0,0.00011999,2]
[361706578,1747710107131,-500.0,0.00011999,2]
[361706579,1747710107160,-500.0,0.00011999,2]
[361706580,1747710107188,-500.0,0.00011999,2]
[361706581,1747710107218,-500.0,0.00011999,2]
[361706582,1747710107246,-500.0,0.00011999,2]
[361706583,1747710107274,-500.0,0.00011999,2]
[361706584,1747710107303,-500.0,0.00011999,2]
[361706585,1747710107332,-500.0,0.00011999,2]
[361706586,1747710107361,-500.0,0.00011999,2]
[361706587,1747710107390,-448.72259528,0.00011999,2]
[361706588,1747710107421,-500.0,0.00011999,2]
[361706589,1747710107450,-500.0,0.00011999,2]
[361706590,1747710107485,-140992.6103283,0.00012,2]
[361706591,1747710107512,-191.71102125,0.00012,2]
[361706592,1747710107538,-531215.2899858,0.00012,2]
[361706593,1747710197485,302.4,0.00027397,120]
[361706594,1747710342169,-176.60348399,0.00011288,2]
[361706595,1747710345282,-26.39651601,0.00011288,2]
[361706596,1747710454427,700.0,0.00010959,2]
[361706597,1747710454687,700.0,0.00010959,2]
[361706598,1747710454966,700.0,0.00010959,2]
[361706599,1747710455261,700.0,0.00010959,2]
[361706600,1747710455520,201.57963224,0.00010959,2]
[361706601,1747710455549,498.42036776,0.00010959,2]
[361706602,1747710456684,700.0,0.00010959,2]
[361706603,1747710456718,700.0,0.00010959,2]
[361706604,1747710456760,786.65921013,0.00010959,2]
[361706605,1747710495375,1000.0,0.00011146,2]
[361706606,1747710507437,-166.38,0.0001149,2]
[361706607,1747710507465,-43.92441606,0.00011625,2]
[361706608,1747710510198,-156.07558394,0.00011625,2]
[361706609,1747710510222,-250.0,0.00011625,2]
[361706610,1747710523592,253.26,0.00011174,2]
[361706611,1747710610889,1500.0,0.00011151,2]
[361706614,1747710631477,-323.2563503,0.0001176,2]
[361706615,1747710631487,-200.0,0.00011769,2]
[361706616,1747710631497,-109.3662158,0.00011769,2]
[361706617,1747710631530,-140.6337842,0.00011769,2]
[361706618,1747710631541,-200.0,0.00011778,2]
[361706619,1747710631551,-190.28,0.00011839,2]
[361706620,1747710631561,-150.0,0.00011899,2]
[361706621,1747710631571,-13.10093698,0.00011899,2]
[361706622,1747710631583,-286.89906302,0.00011899,2]
[361706623,1747710631593,-72.02093498,0.00011899,2]
[361706624,1747710631605,-515.28991249,0.00011899,2]
[361706625,1747710631617,-590.00001,0.00011899,2]
[361706626,1747710631629,-22.68914253,0.00011899,2]
[361706627,1747710631639,-467.5588,0.000119,2]
[361706628,1747710631653,-1695.5691,0.000119,2]
[361706629,1747710631663,-889.18295747,0.000119,2]
[361706630,1747710631674,-3289.3190566,0.000119,2]